bitfinex/quotes_ETHUSD_20241105
["timestamp","ask_amount","ask_price","bid_price","bid_amount"]
[1730814878196,12.28,2444.2,2444.1,5.728]
[1730814879187,12.28,2444.2,2444.1,5.85962837]
[1730814882285,12.28,2444.2,2444.1,6.19436845]
[1730814882802,12.28,2444.6,2444.5,2.86357]
[1730814883099,12.28,2444.6,2444.5,5.99766468]
[1730814883258,12.28,2444.6,2444.5,6.12868884]
[1730814883463,12.28,2444.6,2444.5,2.99459416]
[1730814886465,14.32797379,2444.6,2444.5,0.13102416]
[1730814886995,14.32797379,2444.6,2444.5,0.13078626]
[1730814887503,12.28,2444.6,2444.5,2.99435626]
[1730814890375,12.28,2444.6,2444.5,3.32931347]
[1730814893772,12.28,2444.6,2444.5,3.329665]
[1730814895427,12.28,2444.6,2444.5,3.86634803]
[1730814896513,12.28,2444.6,2444.5,3.329665]
[1730814896724,12.28,2444.6,2444.5,3.86653458]
[1730814897513,12.28,2444.6,2444.5,3.329665]
[1730814897704,13.57607379,2444.6,2444.5,2.99435626]
[1730814897905,14.37207379,2444.6,2444.5,0.46632826]
[1730814898109,14.37207379,2444.6,2444.5,0.13078626]
[1730814898646,14.37207379,2444.6,2444.5,0.13050454]
[1730814900389,14.37207379,2444.6,2444.5,0.46625715]
[1730814900721,14.37207379,2444.6,2444.5,0.13050454]
[1730814900923,14.37207379,2444.6,2444.5,3.32982221]
[1730814901081,14.37207379,2444.6,2444.5,0.46625933]
[1730814902613,12.28,2444.6,2444.5,3.32982933]
[1730814902811,12.28,2444.6,2444.5,7.0013808]
[1730814903736,12.28,2444.6,2444.5,3.86728612]
[1730814904036,12.28,2444.6,2444.5,3.86783945]
[1730814905819,12.28,2444.6,2444.5,7.75883413]
[1730814906817,12.28,2444.6,2444.5,10.75883413]
[1730814907219,12.28,2445.0,2444.9,2.8631]
[1730814907417,12.28,2445.0,2444.9,3.32919955]
[1730814907728,12.28,2445.0,2444.9,2.99313829]
[1730814907930,14.2913,2445.0,2444.9,0.13003829]
[1730814908104,3.29333046,2445.0,2444.9,0.13003829]
[1730814908305,0.7833,2444.9,2444.3,0.53784599]
[1730814908503,0.7833,2444.7,2444.4,3.19984963]
[1730814908748,0.06138468,2444.6,2444.4,3.19984963]
[1730814908927,0.06138468,2444.6,2444.5,0.46661948]
[1730814909531,0.06138468,2444.6,2444.5,3.33018948]
[1730814909836,0.84468468,2444.7,2444.5,3.33018948]
[1730814910059,0.84468468,2444.7,2444.6,3.19967761]
[1730814910260,0.84468468,2444.7,2444.6,3.32998107]
[1730814910490,0.7833,2444.7,2444.6,3.32998107]
[1730814911200,0.7833,2444.7,2444.6,0.46653107]
[1730814911351,0.99597151,2444.7,2444.6,2.99375346]
[1730814911550,1.05735619,2444.7,2444.6,0.46678907]
[1730814913636,13.33735619,2444.7,2444.6,0.46678907]
[1730814913858,13.33735619,2444.7,2444.6,3.33023907]
[1730814913859,13.27597151,2444.7,2444.6,3.33023907]
[1730814914057,13.27597151,2444.7,2444.6,0.46678907]
[1730814915003,14.55800197,2444.7,2444.6,0.46678907]
[1730814915208,14.55800197,2444.7,2444.6,0.13030346]
[1730814915377,14.55800197,2444.7,2444.3,2.86378]
[1730814915560,1.68812227,2444.6,2444.4,0.46701662]
[1730814915760,1.68812227,2444.6,2444.5,0.33649877]
[1730814915960,1.68812227,2444.6,2444.5,0.46692821]
[1730814916408,15.25015273,2444.6,2444.5,0.46692821]
[1730814916613,15.18876805,2444.6,2444.5,0.13042944]
[1730814916765,15.18876805,2444.6,2444.3,2.86379]
[1730814916966,1.85079603,2444.5,2444.4,0.4672964]
[1730814917362,15.47439603,2444.5,2444.4,0.13081204]
[1730814917690,15.41301135,2444.5,2444.2,2.86391]
[1730814918000,0.06138468,2444.4,2444.3,0.46741823]
[1730814919474,0.06138468,2444.4,2444.3,0.13096308]
[1730814919705,2.07063848,2444.4,2444.3,0.33636684]
[1730814919999,2.07063848,2444.4,2444.3,0.46732992]
[1730814920189,0.06138468,2444.4,2444.3,3.33112992]
[1730814920516,13.0736,2444.5,2444.3,3.48750302]
[1730814920711,13.0736,2444.5,2444.4,3.20004684]
[1730814920927,13.0736,2444.5,2444.4,0.33636684]
[1730814921214,14.40222715,2444.5,2444.4,0.46727906]
[1730814922110,14.95222715,2444.5,2444.4,0.46727906]
[1730814922280,14.95222715,2444.5,2444.4,0.13091222]
[1730814922469,14.95222715,2444.5,2444.1,2.86396]
[1730814922672,14.95222715,2444.5,2444.2,0.46740963]
[1730814922878,1.8429574,2444.4,2444.2,0.1311016]
[1730814924285,1.8429574,2444.4,2444.2,2.9950116]
[1730814924488,0.06138468,2444.4,2444.3,2.8638]
[1730814924721,0.06138468,2444.4,2444.2,2.9950216]
[1730814925016,0.06138468,2444.4,2444.3,0.13111962]
[1730814925208,0.06138468,2444.4,2444.2,5.72769]
[1730814925408,0.06138468,2444.4,2444.3,0.13111962]
[1730814925632,0.06138468,2444.4,2444.2,2.86384]
[1730814925919,0.06138468,2444.4,2444.3,0.13106953]
[1730814926280,0.06138468,2444.4,2444.2,5.72771]
[1730814926516,0.06138468,2444.4,2444.2,2.86384]
[1730814926720,0.76291007,2444.4,2444.3,0.13106953]
[1730814927024,0.76291007,2444.4,2444.2,2.86384]
[1730814927208,0.76291007,2444.4,2444.3,0.13106953]
[1730814927524,0.76291007,2444.4,2444.2,5.7277]
[1730814927681,0.76291007,2444.4,2444.3,0.13106953]
[1730814928180,0.76291007,2444.4,2444.2,2.86384]
[1730814928375,12.28,2444.3,2444.2,2.86384]
[1730814928581,12.28,2444.3,2444.2,3.20005009]
[1730814930920,12.28,2444.3,2444.2,3.20001987]
[1730814932931,12.28,2444.3,2444.2,3.35639746]
[1730814933213,12.28,2444.3,2444.2,3.20001987]
[1730814933623,12.28,2444.3,2444.2,3.35639161]
[1730814933773,12.28,2444.3,2444.2,3.35639164]
[1730814934415,12.28,2444.4,2444.3,2.8638]
[1730814934581,12.28,2444.4,2444.3,3.1999939]
[1730814936121,12.28,2444.4,2444.3,3.89435043]
[1730814936347,12.28,2444.4,2444.3,4.20078713]
[1730814936883,12.28,2444.4,2444.3,3.89435043]
[1730814937335,12.28,2444.4,2444.3,3.89470727]
[1730814937485,12.28,2444.4,2444.3,3.73834819]
[1730814937685,12.28,2444.4,2444.3,3.1999939]
[1730814938085,12.28,2444.4,2444.3,2.8638]
[1730814938381,12.28,2444.4,2444.3,3.20031686]
[1730814938807,13.71972021,2444.4,2444.3,0.33651686]
[1730814939125,13.71972021,2444.4,2444.3,0.46741106]
[1730814939299,15.0061223,2444.4,2444.3,0.46741106]
[1730814939503,13.71972021,2444.4,2444.3,0.46741106]
[1730814939711,15.434923,2444.4,2444.3,0.1308942]
[1730814940225,13.71972021,2444.4,2444.1,2.86403]
[1730814940432,1.34786738,2444.3,2444.2,0.4676452]
[1730814940615,13.71972021,2444.4,2444.3,2.8638]
[1730814940616,13.5664827,2444.4,2444.3,2.8638]
[1730814940787,12.28,2444.4,2444.3,3.33141938]
[1730814942128,12.28,2444.4,2444.3,0.46761938]
[1730814942298,15.09465125,2444.4,2444.3,0.46761938]
[1730814942499,15.89905125,2444.4,2444.3,0.13101941]
[1730814942827,16.32777134,2444.4,2444.1,2.86395]
[1730814943122,1.28653231,2444.3,2444.2,0.46774137]
[1730814943326,3.26234632,2444.3,2444.2,0.46774137]
[1730814943488,3.26234632,2444.3,2444.2,0.33665231]
[1730814944992,3.323731,2444.3,2444.2,0.33665231]
[1730814945527,15.09470086,2444.4,2444.2,3.20057231]
[1730814945829,13.56653231,2444.4,2444.3,3.33162825]
[1730814945984,12.28,2444.4,2444.3,3.33162825]
[1730814946383,12.28,2444.4,2444.3,3.33167753]
[1730814950368,12.28,2444.4,2444.3,3.33167102]
[1730814951663,13.56653231,2444.4,2444.3,3.33167102]
[1730814951863,12.28,2444.4,2444.3,3.33167102]
[1730814952569,12.28,2444.4,2444.3,4.02686733]
[1730814953565,12.28,2444.4,2444.3,4.33357806]
[1730814954468,12.28,2444.4,2444.3,4.58395661]
[1730814954631,12.28,2444.4,2444.3,3.24545222]
[1730814954828,12.28,2444.4,2444.3,4.52773764]
[1730814955025,12.28,2444.4,2444.3,4.83446671]
[1730814955330,12.28,2444.4,2444.3,5.66186671]
[1730814958029,12.28,2444.5,2444.4,2.86368]
[1730814958273,12.28,2444.5,2444.4,4.33253474]
[1730814959365,12.28,2444.5,2444.4,5.6834253]
[1730814961290,12.28,2444.5,2444.4,5.86313656]
[1730814961463,12.28,2444.5,2444.4,6.01962811]
[1730814963766,12.28,2444.5,2444.4,15.13203211]
[1730814964744,12.28,2444.5,2444.4,14.1008617]
[1730814965088,12.28,2444.5,2444.4,14.13051109]
[1730814965389,12.28,2444.5,2444.4,15.43805044]
[1730814968581,12.28,2444.5,2444.4,14.10077867]
[1730814968779,12.28,2444.5,2444.4,14.40725235]
[1730814968979,12.28,2444.5,2444.4,15.43777829]
[1730814969184,12.28,2444.5,2444.4,15.43756376]
[1730814969381,12.28,2444.5,2444.4,15.74397388]
[1730814969593,12.28,2444.5,2444.4,14.79448937]
[1730814969887,12.28,2444.6,2444.5,2.86357]
[1730814970217,12.28,2444.6,2444.5,3.33038717]
[1730814970421,12.28,2444.6,2444.5,3.48675216]
[1730814970422,13.56653231,2444.6,2444.5,3.48675216]
[1730814971892,12.28,2444.6,2444.5,3.48675216]
[1730814972907,16.43380582,2444.6,2444.5,0.46681717]
[1730814973130,16.8624763,2444.6,2444.5,0.13068609]
[1730814973535,15.14727351,2444.6,2444.5,0.13068609]
[1730814973711,20.15725562,2444.6,2444.5,0.13068609]
[1730814974293,17.29380562,2444.6,2444.5,0.13068609]
[1730814974499,0.55,2444.5,2444.4,9.112404]
[1730814974699,4.34465937,2444.5,2444.4,9.112404]
[1730814974933,4.34465937,2444.5,2444.4,9.24296567]
[1730814975829,16.62465937,2444.5,2444.4,9.24296567]
[1730814976035,16.56327469,2444.5,2444.4,9.24296567]
[1730814981946,16.56327469,2444.5,2444.4,9.5790844]
[1730814982122,16.56327469,2444.5,2444.4,9.24296567]
[1730814987342,18.48592646,2444.5,2444.4,9.112404]
[1730814987542,18.48592646,2444.5,2444.4,9.24312843]
[1730814987767,18.48592646,2444.5,2443.9,2.86421]
[1730814987768,0.55,2444.3,2443.9,2.86421]
[1730814987950,10.36735665,2444.2,2444.0,0.33595005]
[1730814988158,10.85597197,2444.2,2444.1,0.33595005]
[1730814988638,9.567702,2444.2,2444.1,0.33595005]
[1730814989246,10.85597197,2444.2,2444.1,0.33595005]
[1730814990576,10.85597197,2444.2,2444.1,0.33587387]
[1730814992855,10.85597197,2444.2,2444.1,0.3358371]
[1730814993696,9.567702,2444.2,2443.9,2.86427]
[1730814993847,2.47802419,2444.1,2444.0,0.33587065]
[1730814994041,2.47802419,2444.1,2444.0,2.86415]
[1730814994464,3.27792419,2444.1,2443.9,2.86421]
[1730814994667,1.45633195,2444.0,2443.9,5.72842]
[1730814994974,10.05633195,2444.0,2443.9,2.86421]
[1730814995175,10.05633195,2444.0,2443.9,3.20003848]
[1730814995339,10.05633195,2444.0,2443.9,3.32701041]
[1730814997383,8.6,2444.0,2443.9,4.30462637]
[1730814998282,8.6,2444.0,2443.9,4.14851041]
[1730814998489,8.6,2444.0,2443.9,4.30459034]
[1730814998664,8.6,2444.0,2443.9,4.84187952]
[1730814998980,8.6,2444.0,2443.9,4.68574156]
[1730814999181,8.6,2444.0,2443.9,4.84183859]
[1730814999690,0.86,2444.0,2443.9,1.15612859]
[1730814999845,0.92138468,2444.0,2443.9,0.46276193]
[1730815000495,0.06138468,2444.0,2443.9,0.46276193]
[1730815002197,0.06138468,2444.0,2443.9,0.46290162]
[1730815003175,0.06138468,2444.0,2443.9,0.46294632]
[1730815003754,0.06138468,2444.0,2443.9,3.32721632]
[1730815004356,0.61138468,2444.1,2443.9,3.32721632]
[1730815004592,0.61138468,2444.1,2444.0,0.33597439]
[1730815004593,1.8486778,2444.1,2444.0,0.33597439]
[1730815004973,1.8486778,2444.1,2444.0,3.32752755]
[1730815005368,10.4486778,2444.1,2444.0,3.32752755]
[1730815005569,10.4486778,2444.1,2444.0,4.34244372]
[1730815005570,9.8986778,2444.1,2444.0,4.34244372]
[1730815005884,9.8986778,2444.1,2444.0,4.67842048]
[1730815008997,8.6,2444.1,2444.0,4.67842048]
[1730815009198,8.6,2444.1,2444.0,5.46802048]
[1730815009401,8.6,2444.1,2444.0,6.16171939]
[1730815009695,8.6,2444.1,2444.0,6.16171935]
[1730815011369,8.6,2444.3,2444.2,2.86392]
[1730815011604,8.6,2444.3,2444.2,4.67792592]
[1730815012581,8.6,2444.3,2444.2,1.81400592]
[1730815012780,9.84353933,2444.3,2444.2,4.67792592]
[1730815013104,8.6,2444.3,2444.2,4.67792592]
[1730815016171,9.88809998,2444.3,2444.2,4.67792592]
[1730815016573,9.88809998,2444.3,2444.2,4.34194916]
[1730815016804,9.88809998,2444.3,2444.2,4.67799726]
[1730815017068,8.6,2444.3,2444.2,4.67799726]
[1730815017272,8.6,2444.3,2444.2,4.83417973]
[1730815018130,9.88809998,2444.4,2444.3,3.6425]
[1730815018330,8.6,2444.4,2444.3,1.33607307]
[1730815018472,11.87117931,2444.4,2444.3,0.61910541]
[1730815018672,10.58307933,2444.4,2444.3,0.46292294]
[1730815018906,12.30077263,2444.4,2444.3,0.46292294]
[1730815019108,12.30077263,2444.4,2444.3,0.12687484]
[1730815019439,12.30077263,2444.4,2444.1,2.86398]
[1730815019583,1.34984486,2444.3,2444.2,0.33598453]
[1730815019789,2.92957384,2444.3,2444.2,0.46287893]
[1730815020136,3.90880696,2444.3,2444.2,0.1268944]
[1730815020314,2.19111366,2444.3,2444.2,0.1268944]
[1730815020518,2.19111366,2444.3,2444.0,4.21498056]
[1730815020717,0.61138468,2444.3,2444.1,0.4630764]
[1730815021026,1.71804987,2444.2,2444.1,2.99108171]
[1730815021225,1.28851995,2444.2,2444.1,3.48332608]
[1730815021528,1.28851995,2444.2,2444.1,0.61929608]
[1730815022865,1.34990463,2444.2,2444.1,0.4630556]
[1730815023130,3.27104424,2444.2,2444.1,0.4630556]
[1730815023346,11.87104424,2444.2,2444.1,0.4630556]
[1730815023641,11.80965956,2444.2,2444.1,0.28332218]
[1730815023842,9.88851995,2444.2,2444.1,3.48336985]
[1730815024338,9.88851995,2444.2,2444.1,0.61933985]
[1730815024642,9.88851995,2444.2,2444.1,3.48336985]
[1730815026019,8.6,2444.2,2444.1,3.48336985]
[1730815026231,8.6,2444.2,2444.1,4.32757801]
[1730815026535,8.6,2444.2,2444.1,5.3732033]
[1730815027099,8.6,2444.2,2444.1,4.32757801]
[1730815030598,8.6,2444.2,2444.1,4.32757193]
[1730815030895,8.6,2444.2,2444.1,3.14740994]
[1730815031052,8.6,2444.2,2444.1,4.4983005]
[1730815031967,8.6,2444.2,2444.1,4.34197227]
[1730815032354,8.6,2444.2,2444.1,4.64827565]
[1730815032655,11.04917693,2444.2,2444.1,0.97108329]
[1730815032978,11.47870685,2444.2,2444.1,0.97108329]
[1730815033177,9.76065698,2444.2,2444.1,0.97108329]
[1730815033401,9.76065698,2444.2,2444.1,4.1711899]
[1730815033578,9.76065698,2444.2,2444.1,3.48349188]
[1730815033763,9.71065698,2444.2,2444.1,3.48349637]
[1730815034510,9.71065698,2444.2,2444.1,0.61946637]
[1730815034893,11.42870685,2444.2,2444.1,3.32715832]
[1730815035053,10.94943238,2444.2,2444.1,3.32715832]
[1730815035402,10.94943238,2444.2,2444.1,3.48349017]
[1730815035613,10.94943238,2444.2,2444.1,0.61946017]
[1730815035904,12.17140685,2444.2,2444.1,0.46312832]
[1730815036988,12.17140685,2444.2,2444.1,0.12705171]
[1730815037183,12.17140685,2444.2,2444.1,0.46329608]
[1730815037411,12.17140685,2444.2,2444.1,0.12705171]
[1730815037709,12.17140685,2444.2,2444.1,0.4633245]
[1730815043409,12.17140685,2444.2,2444.1,0.12705171]
[1730815043610,12.17140685,2444.2,2444.1,0.46318669]
[1730815044000,12.17140685,2444.2,2444.1,0.46318939]
[1730815044312,12.17140685,2444.2,2444.1,0.12705171]
[1730815044514,12.17140685,2444.2,2444.1,0.46318091]
[1730815044820,15.58532685,2444.2,2444.1,0.12705171]
[1730815044977,12.72140685,2444.2,2444.1,0.12705171]
[1730815045526,11.37870685,2444.2,2444.1,2.99108171]
[1730815045724,10.21804987,2444.2,2444.1,2.99108171]
[1730815045923,8.5,2444.2,2444.1,3.32705564]
[1730815048043,8.5,2444.2,2444.1,2.99108171]
[1730815048238,8.5,2444.2,2444.1,3.32704393]
[1730815048538,8.5,2444.2,2444.1,2.99108171]
[1730815048845,10.21842353,2444.2,2444.1,3.32711366]
[1730815048997,10.21842353,2444.2,2444.1,3.48337805]
[1730815049197,1.71842353,2444.2,2444.1,3.48337805]
[1730815049429,1.71842353,2444.2,2444.1,4.32709985]
[1730815050632,1.71842353,2444.2,2444.1,4.32708146]
[1730815051217,1.71842353,2444.2,2444.1,3.48337805]
[1730815051431,1.71842353,2444.2,2444.1,3.32711366]
[1730815051636,1.71842353,2444.2,2444.1,3.48340337]
[1730815052850,10.21842353,2444.2,2444.1,3.48340337]
[1730815053758,9.78894583,2444.2,2444.1,3.48340337]
[1730815053906,9.78894583,2444.2,2444.1,4.02101896]
[1730815054207,9.78894583,2444.2,2444.1,4.3272248]
[1730815054927,9.78894583,2444.2,2444.1,4.32723773]
[1730815055513,9.78894583,2444.2,2444.1,4.02112661]
[1730815055727,9.78894583,2444.2,2444.1,4.32738423]
[1730815059048,8.5,2444.2,2444.1,4.32738423]
[1730815059349,8.5,2444.2,2444.1,2.99108171]
[1730815059650,8.5,2444.2,2444.1,4.08314332]
[1730815059852,8.5,2444.2,2444.1,5.66971852]
[1730815060052,8.5,2444.2,2444.1,5.36345691]
[1730815061953,8.5,2444.2,2444.1,5.36339032]
[1730815063077,8.5,2444.2,2444.1,5.05675875]
[1730815063223,8.5,2444.2,2444.1,5.36290092]
[1730815064727,8.5,2444.3,2444.2,2.86392]
[1730815064932,8.5,2444.3,2444.2,5.67712992]
[1730815066679,8.5,2444.3,2444.2,5.21445296]
[1730815066832,8.5,2444.3,2444.2,5.37073632]
[1730815067033,8.5,2444.3,2444.2,5.6768537]
[1730815070538,1.28881713,2444.4,2444.2,5.67672623]
[1730815070539,9.78881713,2444.4,2444.2,5.67672623]
[1730815070731,9.78881713,2444.4,2444.3,3.35591502]
[1730815071059,9.78881713,2444.4,2444.3,3.48209556]
[1730815071581,8.5,2444.4,2444.3,4.28399556]
[1730815071813,8.5,2444.4,2444.3,5.63488612]
[1730815072019,8.5,2444.4,2444.3,6.17216565]
[1730815072200,8.5,2444.4,2444.3,6.47816148]
[1730815072814,8.5,2444.4,2444.3,5.12727092]
[1730815073196,8.5,2444.4,2444.3,6.47816148]
[1730815074103,1.28881713,2444.6,2444.5,2.86357]
[1730815074280,9.78881713,2444.6,2444.5,4.21446056]
[1730815074475,9.78881713,2444.6,2444.5,4.67618158]
[1730815078534,8.5,2444.6,2444.5,4.67618158]
[1730815078892,15.4343204,2445.3,2444.5,4.67618158]
[1730815079100,0.55,2445.1,2444.8,4.21405056]
[1730815079344,1.73523563,2445.1,2444.9,2.98847483]
[1730815079691,1.73523563,2445.1,2445.0,2.86298]
[1730815080192,1.73523563,2445.1,2445.0,2.98831012]
[1730815080790,1.67385095,2445.1,2445.0,4.33920068]
[1730815080936,1.67385095,2445.1,2445.0,4.34920068]
[1730815081139,0.99325872,2445.1,2445.0,4.68481663]
[1730815084257,0.99325872,2445.1,2445.0,4.34920068]
[1730815084605,0.99325872,2445.1,2445.0,4.68399699]
[1730815085107,0.99325872,2445.1,2445.0,4.34920068]
[1730815085401,0.99325872,2445.1,2445.0,4.68391461]
[1730815085612,0.99325872,2445.1,2445.0,4.34920068]
[1730815086757,0.99325872,2445.1,2445.0,4.68386049]
[1730815087006,0.99325872,2445.1,2445.0,6.92186536]
[1730815087159,0.99325872,2445.1,2445.0,6.84007233]
[1730815087667,0.99325872,2445.1,2445.0,9.84007233]
[1730815087905,0.99325872,2445.1,2445.0,10.37523404]
[1730815088204,0.99325872,2445.1,2445.0,10.53045239]
[1730815088358,0.99325872,2445.1,2445.0,10.37493092]
[1730815088563,0.99325872,2445.1,2445.0,10.53034656]
[1730815089604,0.99325872,2445.1,2445.0,10.83475151]
[1730815089813,0.99325872,2445.1,2445.0,10.53034656]
[1730815090175,0.99325872,2445.1,2445.0,10.37493092]
[1730815091259,0.99325872,2445.1,2445.0,7.6731498]
[1730815091676,0.99325872,2445.1,2445.0,10.37493092]
[1730815091884,0.99325872,2445.1,2445.0,10.37346785]
[1730815092415,0.99325872,2445.1,2445.0,10.03947432]
[1730815092716,0.99325872,2445.1,2445.0,10.37327276]
[1730815093511,0.99325872,2445.1,2445.0,9.83918968]
[1730815093667,0.99325872,2445.1,2445.0,10.37307347]
[1730815094330,0.99325872,2445.1,2445.0,9.50539124]
[1730815096715,0.99325872,2445.1,2445.0,9.83911976]
[1730815097473,0.99325872,2445.1,2445.0,9.8391155]
[1730815097906,0.99325872,2445.1,2445.0,10.37304476]
[1730815100344,0.99325872,2445.1,2445.0,6.33203438]
[1730815100496,0.99325872,2445.1,2445.0,7.68292494]
[1730815101235,0.99325872,2445.1,2445.0,7.34920068]
[1730815101534,0.99325872,2445.1,2445.0,7.68317439]
[1730815101881,0.99325872,2445.1,2445.0,9.03406495]
[1730815102025,0.99325872,2445.1,2445.0,8.70009124]
[1730815102225,0.99325872,2445.1,2445.0,9.03405763]
[1730815104632,0.99325872,2445.1,2445.0,9.56872762]
[1730815105730,0.99325872,2445.1,2445.0,10.33592762]
[1730815105932,0.99325872,2445.1,2445.0,10.00212711]
[1730815106136,0.99325872,2445.1,2445.0,10.33639604]
[1730815106335,0.99325872,2445.1,2445.0,9.46729124]
[1730815106665,0.99325872,2445.1,2445.0,10.33673334]
[1730815109634,0.99325872,2445.1,2445.0,9.80229909]
[1730815109853,0.99325872,2445.1,2445.0,6.86933612]
[1730815110049,0.99325872,2445.1,2445.0,8.22022668]
[1730815110367,0.99325872,2445.1,2445.0,9.57111724]
[1730815115290,0.99325872,2445.1,2445.0,3.86933612]
[1730815115499,0.99325872,2445.1,2445.0,5.22022668]
[1730815115694,1.75895872,2445.1,2445.0,5.21022668]
[1730815115859,1.75895872,2445.1,2445.0,4.67420853]
[1730815116680,1.75895872,2445.1,2445.0,0.46033797]
[1730815116886,1.75895872,2445.1,2445.0,4.67420853]
[1730815117753,1.75895872,2445.1,2445.0,5.21070759]
[1730815117954,1.75895872,2445.1,2445.0,5.21101112]
[1730815118188,1.75895872,2445.1,2445.0,4.67451023]
[1730815119969,1.75895872,2445.1,2445.0,1.81153023]
[1730815120280,1.75895872,2445.1,2445.0,4.67451023]
[1730815121464,1.75895872,2445.1,2445.0,4.67433597]
[1730815121654,1.75895872,2445.1,2445.0,4.33920068]
[1730815124553,1.75895872,2445.1,2445.0,1.47622068]
[1730815124813,1.75895872,2445.1,2445.0,0.12533012]
[1730815124969,1.8203434,2445.1,2445.0,0.12533012]
[1730815125170,0.833,2445.0,2444.8,4.21408056]
[1730815125419,0.83308468,2444.9,2444.8,4.21408056]
[1730815126017,0.83308468,2444.9,2444.8,1.35089056]
[1730815126319,0.83308468,2444.9,2444.7,2.86331]
[1730815127319,0.83308468,2444.9,2444.8,1.35089056]
[1730815127473,1.06255055,2444.9,2444.8,1.35089056]
[1730815128267,0.06138468,2445.0,2444.8,4.21410056]
[1730815128510,2.22527406,2445.1,2445.0,2.86298]
[1730815128511,1.75695872,2445.1,2445.0,2.86298]
[1730815129916,1.75695872,2445.1,2444.9,4.21399056]
[1730815130777,0.06138468,2445.0,2444.9,4.21399056]
[1730815131685,1.75695872,2445.1,2444.9,4.21399056]
[1730815131899,1.75695872,2445.1,2445.0,2.86298]
[1730815134132,1.75695872,2445.1,2445.0,2.98796589]
[1730815134313,1.75695872,2445.1,2445.0,0.12498589]
[1730815135432,1.75695872,2445.1,2445.0,2.98796589]
[1730815135932,1.75695872,2445.1,2445.0,0.12498589]
[1730815136937,1.75695872,2445.1,2445.0,2.98796589]
[1730815138932,1.75695872,2445.1,2445.0,0.12498589]
[1730815141290,2.22505706,2445.1,2445.0,0.12498589]
[1730815141528,2.28644174,2445.1,2445.0,0.12498589]
[1730815141740,0.7573,2445.0,2444.7,4.22416056]
[1730815142061,0.81868468,2445.0,2444.9,1.35089056]
[1730815142341,0.81868468,2445.0,2444.7,4.22416056]
[1730815142508,0.22800417,2444.9,2444.7,4.22416056]
[1730815142703,0.06138468,2444.8,2444.7,4.22416056]
[1730815142911,0.06138468,2444.8,2444.7,4.55928778]
[1730815143622,0.06138468,2444.9,2444.8,2.8632]
[1730815144190,0.06138468,2444.9,2444.8,3.19849054]
[1730815145491,0.06138468,2444.9,2444.8,0.33529054]
[1730815145699,0.28938885,2444.9,2444.8,0.33529054]
[1730815146433,0.28938885,2444.9,2444.8,3.19850054]
[1730815147034,0.28938885,2444.9,2444.8,0.33529054]
[1730815148538,1.08668885,2444.9,2444.8,0.33529054]
[1730815148732,1.08668885,2444.9,2444.3,4.21467056]
[1730815148733,4.21058,2444.8,2444.3,4.21467056]
[1730815148948,4.21058,2444.8,2444.2,0.7786]
[1730815148949,3.66075,2444.6,2444.4,0.33565034]
[1730815149188,3.66075,2444.6,2444.4,0.12541615]
[1730815149189,0.06138468,2444.5,2444.4,0.12541615]
[1730815149384,0.06138468,2444.5,2444.2,2.86386]
[1730815149606,0.06138468,2444.5,2444.3,0.33552189]
[1730815149607,0.761,2444.4,2444.3,0.33552189]
[1730815149739,0.761,2444.4,2444.3,1.68639519]
[1730815150479,0.761,2444.4,2444.3,1.35089056]
[1730815150994,0.761,2444.4,2444.3,4.21469056]
[1730815151288,0.761,2444.4,2444.3,4.55006441]
[1730815153878,0.67266169,2444.6,2444.3,4.55006441]
[1730815154063,2.86339,2444.7,2444.5,1.35089056]
[1730815154385,2.86322,2444.8,2444.5,1.35089056]
[1730815154587,3.0,2444.8,2444.7,1.35089056]
[1730815154842,0.22800417,2444.9,2444.7,1.35089056]
[1730815155045,3.09111417,2444.9,2444.7,1.35089056]
[1730815155247,3.45862142,2444.8,2444.7,1.35089056]
[1730815155401,3.45862142,2444.8,2444.5,1.35089056]
[1730815156125,0.59541142,2444.8,2444.5,1.35089056]
[1730815156943,0.7606,2444.7,2444.5,1.35089056]
[1730815157643,0.7606,2444.7,2444.5,4.21445056]
[1730815158256,0.98860417,2444.9,2444.6,2.86345]
[1730815158426,0.99325872,2445.1,2444.5,4.21440056]
[1730815158427,1.75645872,2445.1,2444.7,4.21411056]
[1730815158602,1.75645872,2445.1,2445.0,1.35089056]
[1730815164016,1.75645872,2445.1,2445.0,1.47638345]
[1730815165320,0.99325872,2445.1,2445.0,1.47638345]
[1730815165541,0.99325872,2445.1,2445.0,4.33936345]
[1730815165925,0.99325872,2445.1,2445.0,4.21387056]
[1730815166136,0.99325872,2445.1,2445.0,4.33911935]
[1730815174819,1.77775872,2445.1,2445.0,1.47613935]
[1730815175516,1.77775872,2445.1,2445.0,1.35089056]
[1730815177115,1.77775872,2445.1,2445.0,4.21387056]
[1730815177351,1.77775872,2445.1,2445.0,4.33911935]
[1730815178029,1.77775872,2445.1,2445.0,1.47613935]
[1730815178554,1.77775872,2445.1,2445.0,0.12524879]
[1730815178555,2.24180259,2445.1,2445.0,0.12524879]
[1730815178914,5.10466259,2445.1,2445.0,0.12524879]
[1730815179115,5.10466259,2445.1,2444.6,4.21432056]
[1730815179527,5.10466259,2445.1,2444.7,0.12520725]
[1730815179768,3.87415514,2445.0,2444.7,0.12520725]
[1730815180054,0.8013,2444.9,2444.7,0.12520725]
[1730815180751,0.8013,2444.9,2444.7,2.98852725]
[1730815182668,0.8013,2444.9,2444.7,0.12520725]
[1730815183668,0.8013,2444.9,2444.7,2.98853725]
[1730815185373,1.36816139,2444.9,2444.7,0.12520725]
[1730815186981,1.36816139,2444.9,2444.7,2.98852725]
[1730815189498,1.76225872,2445.1,2444.8,4.21410056]
[1730815189861,1.76225872,2445.1,2444.9,0.12529331]
[1730815190582,0.769,2445.1,2444.9,0.12529331]
[1730815190787,0.769,2445.1,2444.8,4.21410056]
[1730815190975,0.57763851,2445.0,2444.8,4.21410056]
[1730815191497,0.57763851,2445.0,2444.8,1.35089056]
[1730815192001,0.57763851,2445.0,2444.9,0.12113255]
[1730815193901,4.25851851,2445.0,2444.9,0.12113255]
[1730815194201,3.68088,2445.0,2444.6,1.68639697]
[1730815194411,3.68088,2445.0,2444.6,1.35089056]
[1730815194593,3.68088,2445.0,2444.7,0.12129061]
[1730815194762,0.86884307,2444.9,2444.7,0.12129061]
[1730815194964,3.68088,2445.0,2444.7,0.12129061]
[1730815195555,3.68088,2445.0,2444.6,1.35089056]
[1730815195760,0.8179,2445.0,2444.7,0.12136551]
[1730815196216,3.6809,2445.0,2444.7,0.12136551]
[1730815196509,0.58255007,2444.9,2444.7,0.12136551]
[1730815197810,3.44566007,2444.9,2444.7,0.12136551]
[1730815198298,3.68641,2444.8,2444.7,0.12136551]